Workbook

Sheet 1. Forside
A1: Solrød Vandværk a.m.b.a.
D8: Bilag A
D13: Indholdsfortegnelse
C16: Fane nr. 2 | D16: Samlet prisloft
C17: Fane nr. 3 | D17: Driftsomkostninger
C18: Fane nr. 4 | D18: Historiske investeringer
C19: Fane nr. 5 | D19: Gennemførte investeringer
C20: Fane nr. 6 | D20: Korrektion investeringer
C21: Fane nr. 7 | D21: Planlagte investeringer
C22: Fane nr. 8 | D22: 1:1 omkostninger
C23: Fane nr. 9 | D23: Miljø- og servicemål
C24: Fane nr. 10 | D24: Nettofinansielle poster
C25: Fane nr. 11 | D25: Over- eller underdækning
C26: Fane nr. 12 | D26: Kontrol med indtægtsrammen og oversigt over ekstraordinære effektiviseringsgevinster

Sheet 2. Samlet prisloft
A1: ='1. Forside'!A1 -> Solrød Vandværk a.m.b.a.
B4: Fane 2. Samlet prisloft for 2015
B6: Driftsomkostninger
B7: Driftsomkostninger i prisloftet for 2014 | C7: ='3. Driftsomkostninger'!C21 -> 5748433.215 | D7: kr.
B8: Bortfald af væsentlige omkostninger | C8: =-'3. Driftsomkostninger'!C17 -> 0 | D8: kr.
B9: Korrektion for prisudviklingen 2014-2015 | C9: ='3. Driftsomkostninger'!C23 -> 4598.746572 | D9: kr.
B10: Forhøjelse til effektivt niveau iht. benchmarkingen | C10: ='3. Driftsomkostninger'!C29 -> 0 | D10: kr.
B11: Korrektion for generelt effektiviseringskrav | C11: =-'3. Driftsomkostninger'!C35 -> -25293.10615 | D11: kr.
B12: Korrektion for individuelt effektiviseringskrav | C12: =-'3. Driftsomkostninger'!C44 -> 0 | D12: kr.
B13: Driftsomkostninger i alt | C13: =SUM(C7:C12) -> 5727738.855 | D13: kr. | E13: =C13 -> 5727738.855 | F13: kr.
B14: Investeringer
B15: Tillæg for historiske investeringer | C15: ='4. Historiske investeringer'!C9 -> 2147177.758 | D15: kr.
B16: Tillæg for gennemførte investeringer i 2011-2013 | C16: ='5. Gennemførte investeringer'!F62 -> 924206.5367 | D16: kr.
B17: Korrektion af tillæg for planlagte investeringer vedrørende 2013 | C17: ='6. Korrektion investeringer'!C10 -> 558573.1 | D17: kr.
B18: Tillæg for planlagte investeringer i 2014 og 2015 | C18: ='7. Planlagte investeringer'!F20 -> 446333.3333 | D18: kr.
B19: Investeringstillæg i alt | C19: =SUM(C15:C18) -> 4076290.728 | D19: kr. | E19: =C19 -> 4076290.728 | F19: kr.
B20: Øvrige omkostninger mv.
B21: Tillæg for 1:1 omkostninger i 2015 | C21: ='8. 1-1 omkostninger'!C9 -> 133000 | D21: kr.
B22: Tillæg for afgift for ledningsført vand i 2015 | C22: ='8. 1-1 omkostninger'!C14 -> 4180000 | D22: kr.
B23: Tillæg vedr. revisorerklæringer og DANVA/FVD-kontingent | C23: ='8. 1-1 omkostninger'!C20 -> 66000 | D23: kr.
B24: Korrektion ift. faktiske 1:1 omkostninger i 2013 | C24: ='8. 1-1 omkostninger'!C26 -> -337355 | D24: kr.
B25: Tillæg for driftsomkostninger til miljø- og servicemål i 2015 | C25: ='9. Miljø- og servicemål'!C8 -> 10000 | D25: kr.
B26: Korrektion ift. faktiske driftsomkostninger til miljø- og servicemål i 2013 | C26: ='9. Miljø- og servicemål'!C15 -> 0 | D26: kr.
B27: Tillæg/fradrag for nettofinansielle poster i 2015 | C27: ='10. Nettofinansielle poster'!C9 -> 35000 | D27: kr.
B28: Korrektion ift. faktiske nettofinansielle poster i 2013 | C28: ='10. Nettofinansielle poster'!C16 -> 516198 | D28: kr.
B29: Øvrige omkostninger mv. i alt | C29: =SUM(C21:C28) -> 4602843 | D29: kr. | E29: =C29 -> 4602843 | F29: kr.
B30: Historisk over- eller underdækning
B31: Tillæg/fradrag for over- eller underdækning til og med 2010 | C31: ='11. Over- eller underdækning'!C11 -> -1352958.889 | D31: kr. | E31: =C31 -> -1352958.889 | F31: kr.
B32: Korrektion i forhold til tidligere indtægtsramme
B33: Korrektion for overholdelse af indtægtsramme i prisloft 2013 | C33: ='12. Kontrol med indtægtsrammen'!E27 -> -180289.5129 | D33: kr. | E33: =C33 -> -180289.5129 | F33: kr.
B34: Samlet prisloft
B35: Indtægtsramme i 2015 | E35: =SUM(E13:E33) -> 12873624.18 | F35: kr.
B36: Debiteret vandmængde i 2013 | E36: 647691 | F36: m3
B37: Prisloft 2015 | E37: =E35/E36 -> 19.87618198 | F37: kr./m3
B38: Prisloft 2015 ekskl. afgift for ledningsført vand | E38: =(E35-C22)/E36 -> 13.42248724 | F38: kr./m3

Sheet 3. Driftsomkostninger
A1: ='1. Forside'!A1 -> Solrød Vandværk a.m.b.a.
B4: Fane 3. Driftsomkostninger
B6: Driftsomkostningerne i prisloftet for 2014
B7: Korrigerede driftsomkostninger i prisloftet for 2013 (DOiPL 2013) | C7: 6108738 | D7: kr.
B8: Prisfremskrivning 1,5 pct. | C8: =0.015*SUM(C7:C7) -> 91631.07 | D8: kr.
B9: Generelt effektiviseringskrav (0 pct.) | C9: 0 | D9: kr.
B10: Individuelt effektiviseringskrav | C10: 0 | D10: kr.
B11: Bortfald af midlertidigt tillæg iht. § 8, stk. 5 (inkl. prisfremskrivning) | C11: =-1.015*445257 -> -451935.855 | D11: kr.
B12: Driftsomkostningerne i prisloftet for 2014 (DOiPL 2014) (korrigeret for bortfald af midlertidigt tillæg) | C12: =SUM(C7:C11) -> 5748433.215 | D12: kr.
B15: Korrektion for forventet bortfald af væsentlige omkostninger
B16: Selskabets indberettede bortfald af væsentlige omkostninger inden 2015 | C16: 0 | D16: kr.
B17: Korrektion for forventet bortfald | C17: =SUM(C16:C16) -> 0 | D17: kr.
B20: Korrektion for prisudviklingen fra 2014-2015
B21: Driftsomkostningerne i prisloftet for 2014 | C21: =C12-C17 -> 5748433.215 | D21: kr.
B22: Prisudvikling 2014 - 2015 | C22: 0.08 | D22: pct.
B23: Korrektion for prisudvikling | C23: =C21*(C22/100) -> 4598.746572 | D23: kr.
B26: Eventuel forhøjelse til effektivt niveau iht. benchmarkingen
B27: Selskabets effektive driftsomkostninger iht. benchmarkingen | C27: 5325923.174 | D27: kr.
B28: Selskabets pristalskorrigerede driftsomkostninger i 2015-niveau | C28: =C21+C23 -> 5753031.962 | D28: kr.
B29: Eventuel forhøjelse til effektivt niveau | C29: =IF(C28>C27,0,C27-C28) -> 0 | D29: kr.
B32: Korrektion for generelt effektiviseringskrav
B33: Driftsomkostningerne i prisloftet for 2014 | C33: =C21 -> 5748433.215 | D33: kr.
B34: Generelt effektiviseringskrav | C34: 0.44 | D34: pct.
B35: Endeligt generelt effektiviseringskrav | C35: =C33*(C34/100) -> 25293.10615 | D35: kr.
B38: Korrektion for individuelt effektiviseringskrav
B39: Rå effektiviseringspotentiale | C39: 422509.8255 | D39: kr.
B40: Effektiviseringspotentiale efter eventuel korrektion for særlige forhold | C40: 422509.8255 | D40: kr.
B41: Effektiviseringspotentiale efter forsigtighedshensyn | C41: 0 | D41: kr.
B42: Effektiviseringspotentiale efter eventuel korrektion for sammensætning af signifikante costdrivere | C42: 0 | D42: kr.
B43: Umiddelbart effektiviseringskrav | C43: =C42/4 -> 0 | D43: kr.
B44: Endeligt individuelt effektiviseringskrav | C44: =IF(C43>0.05*C21,0.05*C21,IF(C43<0.01*C21,0,C43)) -> 0 | D44: kr.

Sheet 4. Historiske investeringer
A1: ='3. Driftsomkostninger'!A1 -> Solrød Vandværk a.m.b.a.
B4: Fane 4. Historiske investeringer
B6: Tillæg for historiske investeringer
B7: Værdi af selskabets materielle anlægsaktiver pr. 1. januar 2010 | C7: 89397923.34 | D7: kr.
B8: Den årlige standardafskrivning på de materielle anlægsaktiver iht. POLKA | C8: 2147177.758 | D8: kr.
B9: Tillæg i alt i 2015 | C9: =C8 -> 2147177.758 | D9: kr.

Sheet 5. Gennemførte investeringer
A1: ='4. Historiske investeringer'!A1 -> Solrød Vandværk a.m.b.a.
B4: Fane 5. Gennemførte investeringer i 2010 - 2013
B6: Tillæg for gennemførte investeringer i 2013
B7: Beskrivelse af investeringen | C7: Årstal | D7: Std. levetid (år) | E7: Anskaffelses-pris (kr.) | F7: Afskrivning
B8: Afregningsmålere, elektroniske = Ø 110mm (Qn 10) | C8: 2013 | D8: 10 | E8: 22463 | F8: =E8/D8 -> 2246.3 | G8: kr.
B9: Laboratorium (bygning, inkl. inventar+udstyr), Mek./EL | C9: 2013 | D9: 10 | E9: 2476 | F9: 247.6 | G9: kr.
B10: SRO-brønd/kvarterbrønd/sektionsbrønd, SRO | C10: 2013 | D10: 10 | E10: 5485 | F10: 548.5 | G10: kr.
B11: SRO-brønd/kvarterbrønd/sektionsbrønd, Mek./EL | C11: 2013 | D11: 15 | E11: 72275 | F11: 4818.333333 | G11: kr.
B12: Beluftningsanlæg, iltningstrappe, Mek./EL | C12: 2013 | D12: 25 | E12: 13919 | F12: 556.76 | G12: kr.
B13: Beluftningsanlæg, iltningstrappe, Mek./EL | C13: 2013 | D13: 25 | E13: 6333 | F13: =E13/D13 -> 253.32 | G13: kr.
B14: Filteranlæg, trykfiltre, enkelt filtrering | C14: 2013 | D14: 25 | E14: 72865 | F14: 2914.6 | G14: kr.
B15: Pumpestation (inkl. evt. hydrofor)/trykforøger, Konstruktioner | C15: 2013 | D15: 50 | E15: 39043 | F15: 780.86 | G15: kr.
B16: SRO-brønd/kvarterbrønd/sektionsbrønd, Konstruktioner | C16: 2013 | D16: 50 | E16: 18656 | F16: 373.12 | G16: kr.
B17: Bygning for trykforøgere | C17: 2013 | D17: 75 | E17: 4580 | F17: 61.06666667 | G17: kr.
B18: Etageareal vandbehandlingsbygning | C18: 2013 | D18: 75 | E18: 19038 | F18: 253.84 | G18: kr.
B19: Garage og rørlager | C19: 2013 | D19: 75 | E19: 20485 | F19: 273.1333333 | G19: kr.
B20: SRO anlæg | C20: 2013 | D20: 10 | E20: 24321 | F20: 2432.1 | G20: kr.
B21: Pumpe inkl. stigrør og forerørsforsejlinger mv. | C21: 2013 | D21: 15 | E21: 29777 | F21: 1985.133333 | G21: kr.
B22: Elanlæg | C22: 2013 | D22: 20 | E22: 6247 | F22: 312.35 | G22: kr.
B23: Boring (inkl. etablering, forerør, filter og prøvepumpning) | C23: 2013 | D23: 30 | E23: 521174 | F23: 17372.46667 | G23: kr.
B24: Rentvandsbeholder insitu støbt | C24: 2013 | D24: 50 | E24: 4480 | F24: 89.6 | G24: kr.
B25: Boring (inkl. etablering, forerør, filter og prøvepumpning) | C25: 2013 | D25: 30 | E25: 57472 | F25: 1915.733333 | G25: kr.
B26: SRO-brønd/kvarterbrønd/sektionsbrønd, SRO | C26: 2013 | D26: 10 | E26: 55265 | F26: 5526.5 | G26: kr.
B27: Inspektionsbrønd, Mek./EL | C27: 2013 | D27: 15 | E27: 30045 | F27: 2003 | G27: kr.
B28: SRO-brønd/kvarterbrønd/sektionsbrønd, Mek./EL | C28: 2013 | D28: 15 | E28: 24025 | F28: 1601.666667 | G28: kr.
B29: Ventiler på ledningsnet = Ø50 mm | C29: 2013 | D29: 75 | E29: 206557 | F29: 2754.093333 | G29: kr.
B30: Ledningsnet = Ø50 mm | C30: 2013 | D30: 75 | E30: 580058 | F30: 7734.106667 | G30: kr.
B31: Eternitledninger = Ø50 mm | C31: 2013 | D31: 75 | E31: 317065 | F31: 4227.533333 | G31: kr.
B32: Ventiler på ledningsnet = Ø50 mm | C32: 2013 | D32: 75 | E32: 449374 | F32: 5991.653333 | G32: kr.
B33: Ledningsnet = Ø50 mm | C33: 2013 | D33: 75 | E33: 378409 | F33: 5045.453333 | G33: kr.
B34: Inspektionsbrønd, Mek./EL | C34: 2013 | D34: 15 | E34: 11000 | F34: 733.3333333 | G34: kr.
B35: Køretøjer, entreprenørmaskiner | C35: 2013 | D35: 5 | E35: 54999 | F35: 10999.8 | G35: kr.
B36: Køretøjer, små lastvogne (< 3.500 kg.) | C36: 2013 | D36: 5 | E36: 49082 | F36: 9816.4 | G36: kr.
B37: Skyllevandsbehandling, inkl. UV-filter mv., Mek./EL | C37: 2013 | D37: 25 | E37: 5786 | F37: 231.44 | G37: kr.
B38: SRO-anlæg, vandværk | C38: 2013 | D38: 10 | E38: 51383 | F38: 5138.3 | G38: kr.
B39: SRO-brønd/kvarterbrønd/sektionsbrønd, SRO | C39: 2013 | D39: 10 | E39: 125120 | F39: 12512 | G39: kr.
B40: Afregningsmålere, elektroniske = Ø 110mm (Qn 10) | C40: 2013 | D40: 10 | E40: 1289116 | F40: 128911.6 | G40: kr.
B41: Afregningsmålere, elektroniske > Ø110 mm | C41: 2013 | D41: 10 | E41: 76713 | F41: 7671.3 | G41: kr.
B42: Instrumenter (flowmåler+tryk transducer+alarmer) | C42: 2013 | D42: 10 | E42: 27668 | F42: 2766.8 | G42: kr.
B43: SRO-brønd/kvarterbrønd/sektionsbrønd, Mek./EL | C43: 2013 | D43: 15 | E43: 866 | F43: 57.73333333 | G43: kr.
B44: Køretøjer, små lastvogne (< 3.500 kg.) | C44: 2013 | D44: 5 | E44: 152695 | F44: 30539 | G44: kr.
B45: SRO-anlæg, vandværk | C45: 2013 | D45: 10 | E45: 19116 | F45: 1911.6 | G45: kr.
B46: SRO-brønd/kvarterbrønd/sektionsbrønd, SRO | C46: 2013 | D46: 10 | E46: 37889 | F46: 3788.9 | G46: kr.
B47: Ø 50mm < Ledningsnet = Ø110 mm | C47: 2013 | D47: 75 | E47: 15571 | F47: 207.6133333 | G47: kr.
B48: Elanlæg | C48: 2013 | D48: 20 | E48: 113934 | F48: 5696.7 | G48: kr.
B49: Køretøjer, entreprenørmaskiner | C49: 2013 | D49: 5 | E49: 83268 | F49: 16653.6 | G49: kr.
B50: Pumpestation (inkl. evt. hydrofor)/trykforøger, SRO | C50: 2013 | D50: 10 | E50: 121977 | F50: 12197.7 | G50: kr.
B51: Sikring (terror, hærværk), SRO | C51: 2013 | D51: 10 | E51: 11358 | F51: 1135.8 | G51: kr.
B52: Pumpestation (inkl. evt. hydrofor)/trykforøger, Mek./EL | C52: 2013 | D52: 25 | E52: 73916 | F52: 2956.64 | G52: kr.
B53: Inspektionsbrønd, Konstruktioner | C53: 2013 | D53: 50 | E53: 9728 | F53: 194.56 | G53: kr.
B54: Pumpestation (inkl. evt. hydrofor)/trykforøger, Konstruktioner | C54: 2013 | D54: 50 | E54: 808225 | F54: 16164.5 | G54: kr.
B55: Bygning for trykforøgere | C55: 2013 | D55: 75 | E55: 17750 | F55: 236.6666667 | G55: kr.
B56: Ledningsnet = Ø50 mm | C56: 2013 | D56: 75 | E56: 25646 | F56: 341.9466667 | G56: kr.
B57: Ventiler på ledningsnet = Ø50 mm | C57: 2013 | D57: 75 | E57: 3351 | F57: 44.68 | G57: kr.
B58: Ø 50mm < Ledningsnet = Ø110 mm | C58: 2013 | D58: 75 | E58: 3761575 | F58: 50154.33333 | G58: kr.
B59: Støbejernsledninger = Ø50 mm | C59: 2013 | D59: 100 | E59: 490478 | F59: 4904.78 | G59: kr.
B60: Tillæg for 2013 | F60: =SUM(F8:F59) -> 398286.55 | G60: kr.
B61: Tillæg for 2010 - 2012 | F61: 525919.9867 | G61: kr.
B62: Samlet tillæg for gennemførte investeringer | F62: =F60+F61 -> 924206.5367 | G62: kr.

Sheet 6. Korrektion investeringer
A1: ='5. Gennemførte investeringer'!A1 -> Solrød Vandværk a.m.b.a.
B4: Fane 6. Korrektion af tillæg for planlagte investeringer
B6: Korrektion af tillæg for planlagte investeringer vedr. 2013
B7: Tillæg for planlagte investeringer i 2013 i prisloft 2013 | C7: 32000 | D7: kr.
B8: Tillæg for planlagte investeringer i 2013 i prisloft 2014 | C8: 206000 | D8: kr.
B9: Selskabets faktiske afskrivninger på gennemførte investeringer i 2013 | C9: ='5. Gennemførte investeringer'!F60 -> 398286.55 | D9: kr.
B10: Korrektion af tillæg for planlagte investeringer vedr. 2013 | C10: =C9-C7+C9-C8 -> 558573.1 | D10: kr.

Sheet 7. Planlagte investeringer
A1: ='6. Korrektion investeringer'!A1 -> Solrød Vandværk a.m.b.a.
B4: Fane 7. Planlagte investeringer
B6: Tillæg for planlagte investeringer i 2014 og 2015
B7: Beskrivelse af investeringen | C7: Årstal | D7: Std. levetid (år) | E7: Anskaffelses-pris (kr.) | F7: Afskrivning
B8: Afregningsmålere, elektroniske = Ø 110mm (Qn 10) | C8: 2014 | D8: 10 | E8: 900000 | F8: =E8/D8 -> 90000 | G8: kr.
B9: Ventiler på ledningsnet = Ø50 mm | C9: 2014 | D9: 75 | E9: 850000 | F9: =E9/D9 -> 11333.33333 | G9: kr.
B10: Ledningsnet = Ø50 mm | C10: 2014 | D10: 75 | E10: 500000 | F10: =E10/D10 -> 6666.666667 | G10: kr.
B11: Boring (inkl. etablering, forerør, filter og prøvepumpning) | C11: 2014 | D11: 30 | E11: 450000 | F11: 15000 | G11: kr.
B12: Ledningsnet = Ø50 mm | C12: 2014 | D12: 75 | E12: 2200000 | F12: 29333.33333 | G12: kr.
B13: Beluftningsanlæg, rislebakke, Mek./EL | C13: 2014 | D13: 25 | E13: 3500000 | F13: 140000 | G13: kr.
B14: Afregningsmålere, elektroniske = Ø 110mm (Qn 10) | C14: 2015 | D14: 10 | E14: 900000 | F14: 90000 | G14: kr.
B15: Ventiler på ledningsnet = Ø50 mm | C15: 2015 | D15: 75 | E15: 750000 | F15: 10000 | G15: kr.
B16: Ledningsnet = Ø50 mm | C16: 2015 | D16: 75 | E16: 300000 | F16: 4000 | G16: kr.
B17: Køretøjer, personbil | C17: 2015 | D17: 5 | E17: 250000 | F17: 50000 | G17: kr.
B18: Tillæg for 2014 | F18: =SUMIF(C8:C17,"2014",F8:F17) -> 292333.3333 | G18: kr.
B19: Tillæg for 2015 | F19: =SUMIF(C8:C17,"2015",F8:F17) -> 154000 | G19: kr.
B20: Tillæg i alt | F20: =F18+F19 -> 446333.3333 | G20: kr.

Sheet 8. 1-1 omkostninger
A1: ='7. Planlagte investeringer'!A1 -> Solrød Vandværk a.m.b.a.
B4: Fane 8. 1:1 omkostninger
B6: Tillæg for budgetterede 1:1 omkostninger i 2015
B7: Betaling til Forsyningssekretariatet | C7: 33000 | D7: kr.
B8: Betaling af selskabsskatter | C8: 100000 | D8: kr.
B9: Tillæg i alt | C9: =SUM(C7:C8) -> 133000 | D9: kr.
B12: Tillæg for afgift for ledningsført vand i 2015
B13: Afgift for ledningsført vand (6,53 kr./m3) | C13: 4180000 | D13: kr.
B14: Tillæg i alt | C14: =SUM(C13:C13) -> 4180000 | D14: kr.
B17: Tillæg for budgetterede nødvendige udgifter til revisorerklæringer samt ordinært medlemskab af DANVA og FVD i 2015
B18: Betaling for ordinært medlemskab af DANVA/FVD | C18: 30000 | D18: kr.
B19: Betaling for revisorerklæringer | C19: 36000 | D19: kr.
B20: Tillæg i alt | C20: =SUM(C18:C19) -> 66000 | D20: kr.
B23: Korrektion af tillæg for faktiske 1:1 omkostninger (inkl. afgift for ledningsført vand, revisorerklæringer og ordinært medlemskab af DANVA/FVD) i 2013
B24: Selskabets faktiske 1:1 omkostninger mv. i 2013, jf. reguleringsregnskabet | C24: 3774145 | D24: kr.
B25: Tillæg for budgetterede 1:1 omkostninger mv. i prisloft 2013 | C25: 4111500 | D25: kr.
B26: Korrektion af tillæg for budgetterede 1:1 omkostninger mv. i 2013 | C26: =C24-C25 -> -337355 | D26: kr.

Sheet 9. Miljø- og servicemål
A1: ='8. 1-1 omkostninger'!A1 -> Solrød Vandværk a.m.b.a.
B4: Fane 9. Driftsomkostninger til miljø- og servicemål
B6: Tillæg for budgetterede driftsomkostninger til miljø- og servicemål i 2015
B7: Kvalitetssikring | C7: 10000 | D7: kr.
B8: Tillæg i alt | C8: =SUM(C7:C7) -> 10000 | D8: kr.
B12: Korrektion af tillæg for faktiske driftsomkostninger til miljø- og servicemål i 2013
B13: Selskabets faktiske driftsomkostninger til miljø- og servicemål i 2013, jf. reguleringsregnskabet | C13: 0 | D13: kr.
B14: Tillæg for budgetterede driftsomkostninger til miljø- og servicemål i prisloft 2013 | C14: 0 | D14: kr.
B15: Korrektion af tillæg for budgetterede driftsomkostninger til miljø- og servicemål i 2013 | C15: =C13-C14 -> 0 | D15: kr.

Sheet 10. Nettofinansielle poster
A1: ='2. Samlet prisloft'!A1 -> Solrød Vandværk a.m.b.a.
B4: Fane 10. Nettofinansielle poster
B6: Tillæg for budgetterede nettofinansielle poster i 2015
B7: Budgetterede renteudgifter og gebyrer i 2015 | C7: 75000 | D7: kr.
B8: Budgetterede renteindtægter i 2015 | C8: 40000 | D8: kr.
B9: Tillæg/fradrag i alt | C9: =C7-C8 -> 35000 | D9: kr.
B13: Korrektion af tillæg for faktiske nettofinansielle poster i 2013
B14: Selskabets faktiske nettofinansielle poster i 2013, jf. reguleringsregnskabet | C14: 16198 | D14: kr.
B15: Tillæg for budgetterede nettofinansielle poster i prisloft 2013 | C15: -500000 | D15: kr.
B16: Korrektion af tillæg for budgetterede nettofinansielle poster i 2013 | C16: =C14-C15 -> 516198 | D16: kr.

Sheet 11. Over- eller underdækning
A1: ='1. Forside'!A1 -> Solrød Vandværk a.m.b.a.
B4: Fane 11. Over- eller underdækning til og med 2010
B6: Tillæg/fradrag for over- eller underdækning til og med 2010
B7: Opgjort over- eller underdækning per 31. december 2010 | C7: -14082397 | D7: kr.
B8: Heraf beløb indregnet i prislofterne for 2011 - 2014 | C8: -5964643.667 | D8: kr.
B9: Endnu ikke indregnet over- eller underdækning | C9: =C7-C8 -> -8117753.333 | D9: kr.
B10: Resterende indregningsperiode (fastsat i prisloftet for 2012) | C10: 6 | D10: år
B11: Tillæg/fradrag i alt | C11: =IF(C7=0,0,C9/C10) -> -1352958.889 | D11: kr.

Sheet 12. Kontrol med indtægtsrammen
A1: ='11. Over- eller underdækning'!A1 -> Solrød Vandværk a.m.b.a.
B4: Fane 12. Korrektion for overholdelse af indtægtsrammen i prisloftet for 2013
B6: Samlet opgørelse vedrørende overholdelse af indtægtsrammen i prisloftet for 2013
B7: Indtægtsramme i prisloftet for 2013 | E7: 9335120.487 | F7: kr.
B8: Ikke anvendt likviditet vedrørende investeringer i 2013
B9: Tillæg for historiske investeringer | C9: 2155821.819 | D9: kr.
B10: Tillæg for gennemførte investeringer i 2011 | C10: 410601 | D10: kr.
B11: Korrektion af tillæg for planlagte investeringer i 2011 | C11: 166274 | D11: kr.
B12: Tillæg for planlagte investeringer i 2012 og 2013 | C12: 191133 | D12: kr.
B13: Indtægter fra tilslutningsbidrag | C13: 0 | D13: kr.
B14: Indtægter fra salg af anlægsaktiver | C14: 565357 | D14: kr.
B15: Erstatninger vedr. anlægsaktiver mv. | C15: 0 | D15: kr.
B16: Ekstraordinær effektiviseringsgevinst anvendt til investeringer | C16: 1798696 | D16: kr.
B17: Udgifter til investeringer | C17: -5287883 | D17: kr.
B18: Ikke anvendt likviditet vedr. investeringer i alt | C18: =SUM(C9:C17) -> -0.180937212 | D18: kr. | E18: =IF(C18<0,0,-C18) -> 0 | F18: kr.
B19: Ekstraordinære effektiviseringsgevinster anvendt til takstnedsættelse
B20: Ekstraordinær effektiviseringsgevinst anvendt til takstnedsættelse | C20: 0 | D20: kr. | E20: =-C20 -> 0 | F20: kr.
B21: Korrektion af ikke opkrævet tillæg fra 2011 i prisloft 2013
B22: Korrektion af ikke opkrævet tillæg fra 2011 i prisloft 2013 | C22: 0 | D22: kr. | E22: =-C22 -> 0 | F22: kr.
B23: Indtægter fra primære aktiviteter mv.
B24: Indtægter fra kubikmetertakster, faste takster, særbidrag, målergebyrer samt andre takster og gebyrer | C24: 9515410 | D24: kr.
B25: Andre indtægter i prisloftåret, som selskabet har opnået i forbindelse med eller som følge af selskabets primære aktiviteter | C25: 0 | D25: kr.
B26: Indtægter fra primære aktiviteter mv. i alt | C26: =SUM(C24:C25) -> 9515410 | D26: kr. | E26: =-C26 -> -9515410 | F26: kr.
B27: Tillæg/fradrag i prisloftet for 2015 i alt | E27: =E7+E18+E20+E22+E26 -> -180289.5129 | F27: kr.
B31: Oversigt over ekstraordinære effektiviseringsgevinster
C33: 2012 | E33: 2013 | G33: 2014 | I33: 2015 | K33: 2016
B34: Indhentet ekstraordinær effektiviseringsgevinst | C34: 0 | D34: kr. | E34: 1798696 | F34: kr. | H34: kr. | J34: kr. | L34: kr.
B35: Gevinst anvendt til investeringer | C35: 0 | D35: kr. | E35: 1798696 | F35: kr. | H35: kr. | J35: kr. | L35: kr.
B36: Gevinst anvendt til takstnedsættelse | C36: 0 | D36: kr. | E36: 0 | F36: kr. | H36: kr. | J36: kr. | L36: kr.
B37: Korrektion for effektiviseringsgevinst der ikke er anvendt inden 4 år | C37: 0 | D37: kr. | E37: 0 | F37: kr. | H37: kr. | J37: kr. | K37: =IF(C38>SUM(C35:I36),C38-SUM(E35:I36),0)*-1 -> 0 | L37: kr.
B38: Resterende gevinst | C38: =C34-C35-C36 -> 0 | D38: kr. | E38: =C38+E34-E35-E36 -> 0 | F38: kr. | G38: =E38+G34-G35-G36 -> 0 | H38: kr. | I38: =G38+I34-I35-I36 -> 0 | J38: kr. | K38: =K34-K35-K36+K37 -> 0 | L38: kr.
